bitfinex/quotes_SOLUSD_20240916
["timestamp","ask_amount","ask_price","bid_price","bid_amount"]
[1726495800731,50.0,131.98,131.97,7.5774]
[1726495800921,70.0,131.98,131.97,7.5774]
[1726495803138,70.0,131.98,131.96,26.7769393]
[1726495803646,70.0,131.98,131.96,19.1991393]
[1726495804027,70.0,131.98,131.96,26.7769393]
[1726495804229,70.0,131.98,131.97,7.5774]
[1726495804418,70.0,131.98,131.96,26.7769393]
[1726495804751,20.0,131.97,131.96,0.2547393]
[1726495805942,50.0,131.94,131.93,18.9483]
[1726495806148,50.0,131.94,131.9,37.9057]
[1726495806149,50.0,131.94,131.9,18.9529]
[1726495806443,50.0,131.94,131.91,7.5804]
[1726495808321,50.0,131.94,131.92,7.8348393]
[1726495808525,50.0,131.94,131.93,7.5797]
[1726495810129,70.0,131.94,131.92,7.8349393]
[1726495810534,20.0,131.93,131.92,7.8349393]
[1726495811447,50.0,131.94,131.92,7.8349393]
[1726495811448,50.0,131.94,131.93,7.5797]
[1726495812736,50.0,131.96,131.95,7.5786]
[1726495812939,50.0,131.99,131.98,7.5769]
[1726495813427,50.0,131.99,131.98,26.5191]
[1726495814450,50.0,132.01,132.0,7.5757]
[1726495815338,50.0,132.03,132.02,7.5746]
[1726495815743,50.0,132.0,131.98,18.942]
[1726495816142,50.0,132.0,131.98,26.5183]
[1726495816338,70.0,132.0,131.98,18.942]
[1726495816539,50.0,132.0,131.98,26.5188]
[1726495817053,50.0,132.0,131.99,7.5763]
[1726495817233,70.0,132.0,131.99,7.5763]
[1726495817931,70.0,132.0,131.98,18.942]
[1726495818246,50.0,131.98,131.96,7.5779]
[1726495818437,50.0,131.98,131.95,56.8391]
[1726495818629,50.0,131.98,131.97,7.5774]
[1726495818826,70.0,131.98,131.97,7.5774]
[1726495819730,50.0,131.98,131.97,7.5774]
[1726495820127,50.0,131.98,131.95,56.8391]
[1726495820128,50.0,132.0,131.99,7.5763]
[1726495821646,70.0,132.0,131.99,7.5763]
[1726495822228,70.0,132.0,131.98,26.5188]
[1726495823731,50.0,131.97,131.96,7.5776]
[1726495824261,20.0,132.0,131.95,56.8393]
[1726495824262,70.0,131.99,131.98,7.5769]
[1726495824549,50.0,132.01,132.0,26.515]
[1726495824752,73.9,132.04,132.02,7.5746]
[1726495824753,50.0,132.03,132.02,7.5746]
[1726495825663,50.0,132.05,132.04,7.5734]
[1726495825949,50.0,132.05,132.03,26.508]
[1726495826532,50.0,132.05,132.03,18.9341]
[1726495826930,20.0,132.04,132.03,18.9341]
[1726495828158,20.0,132.04,132.03,26.5081]
[1726495828751,50.0,132.05,132.04,7.5734]
[1726495828954,70.0,132.05,132.04,7.5734]
[1726495829258,70.0,132.05,132.03,18.9341]
[1726495829259,70.0,132.05,132.03,26.5079]
[1726495830738,50.0,132.05,132.03,26.5079]
[1726495831347,50.0,132.05,132.04,7.5734]
[1726495831855,50.0,132.05,132.01,37.8734]
[1726495831856,50.0,132.05,132.0,35.3877]
[1726495832050,50.0,132.03,132.02,7.5746]
[1726495832444,50.0,132.05,132.02,18.9351]
[1726495832839,50.0,132.05,132.04,7.5734]
[1726495833456,0.2547393,132.06,132.05,26.505]
[1726495834268,0.2547393,132.06,132.05,70.9141]
[1726495836148,0.2547393,132.06,132.05,33.0497]
[1726495837436,0.2547393,132.06,132.05,49.3702]
[1726495838336,0.2547393,132.06,132.05,33.0497]
[1726495838536,0.2547393,132.06,132.05,26.505]
[1726495841457,0.2547393,132.06,132.05,64.3694]
[1726495846850,3.93e-05,132.06,132.05,64.3694]
[1726495847057,3.93e-05,132.06,132.05,65.88297445]
[1726495847470,3.93e-05,132.06,132.05,64.3694]
[1726495865370,3.93e-05,132.06,132.05,65.10314528]
[1726495866286,3.93e-05,132.06,132.05,64.3694]
[1726495869282,3.93e-05,132.06,132.05,85.88213162]
[1726495869666,3.93e-05,132.06,132.05,84.3694]
[1726495870167,0.2547393,132.1,132.09,64.3498]
[1726495870485,0.2547393,132.1,132.09,79.79343146]
[1726495870989,3.93e-05,132.1,132.09,99.79343146]
[1726495872075,3.93e-05,132.1,132.09,108.47164333]
[1726495875296,3.93e-05,132.1,132.09,84.3498]
[1726495875486,3.93e-05,132.1,132.09,64.3498]
[1726495880976,3.93e-05,132.1,132.09,26.4969]
[1726495881182,50.0000393,132.1,132.08,7.5709]
[1726495881515,50.0,132.08,132.07,7.5713]
[1726495881895,50.0,132.08,132.06,26.5018]
[1726495882077,50.0,132.08,132.07,7.5717]
[1726495882573,50.0,132.08,132.06,18.9297]
[1726495882971,50.0,132.08,132.05,7.5724]
[1726495882972,50.0,132.06,132.05,7.5728]
[1726495884375,50.0,132.06,132.04,7.5733]
[1726495884892,50.0,132.04,132.03,18.935]
[1726495885098,50.0,132.04,132.03,26.509]
[1726495886404,50.0,132.04,132.03,18.935]
[1726495886977,50.0,132.04,132.03,26.509]
[1726495889202,50.0,132.02,132.01,7.575]
[1726495892612,70.0,132.04,132.03,7.574]
[1726495892908,6.1735,132.06,132.0,0.2547]
[1726495892909,70.0,132.06,132.05,7.5728]
[1726495894980,20.0,132.05,132.04,18.9325]
[1726495895799,20.0,132.05,132.04,26.5059]
[1726495896607,50.0,132.06,132.05,7.5728]
[1726495897193,70.0,132.08,132.07,7.5717]
[1726495897393,50.0,132.08,132.07,7.5717]
[1726495899211,20.0,132.07,132.06,18.9304]
[1726495899511,50.0,132.05,132.03,26.5078]
[1726495899892,50.0,132.05,132.0,0.2547]
[1726495899893,50.0,132.03,132.02,7.5745]
[1726495900609,50.0,132.03,132.01,7.5749]
[1726495901192,50.0,132.03,132.02,7.5746]
[1726495901409,70.0,132.03,132.02,7.5746]
[1726495903991,70.0,132.03,132.01,7.5747]
[1726495904197,20.0,132.02,132.01,7.5747]
[1726495905818,50.0,132.01,132.0,26.7687]
[1726495908221,20.0,132.02,132.01,7.5751]
[1726495909026,50.0,132.03,132.02,7.5746]
[1726495909331,50.0,132.01,132.0,19.1931]
[1726495910429,50.0,132.01,132.0,26.7688]
[1726495910716,50.0,132.03,132.02,7.5746]
[1726495910921,70.0,132.03,132.02,7.5746]
[1726495912405,50.0,132.01,132.0,26.7688]
[1726495913022,70.0,132.03,132.02,7.5746]
[1726495913719,50.0,132.01,132.0,26.7687]
[1726495914402,20.0,132.02,132.01,7.5751]
[1726495916523,50.0,132.01,132.0,19.1931]
[1726495916735,70.0,132.01,132.0,19.1931]
[1726495917024,70.0,132.01,132.0,26.7688]
[1726495919024,70.0,132.01,132.0,0.2547]
[1726495923200,50.0,132.03,132.02,7.5746]
[1726495923405,50.0,132.05,132.0,0.2547]
[1726495924029,50.0,132.05,132.04,7.5734]
[1726495925029,20.0,132.04,132.03,26.5085]
[1726495926306,20.0,132.04,132.03,18.9347]
[1726495926811,50.0,132.01,132.0,19.1933]
[1726495927010,20.0,132.02,132.0,19.1933]
[1726495927408,20.0,132.02,132.01,7.5751]
[1726495931735,70.0,132.03,132.02,7.5746]
[1726495938666,70.0,132.05,132.04,26.507]
[1726495938814,34.5285231,132.1,132.07,18.9293]
[1726495938815,50.0,132.09,132.07,18.9293]
[1726495939136,271.6238,132.13,132.07,18.9293]
[1726495939137,50.0,132.11,132.07,18.9293]
[1726495939516,50.0,132.09,132.08,7.5711]
[1726495939813,50.0,132.09,132.07,26.5009]
[1726495940224,20.0,132.08,132.07,26.5009]
[1726495940939,50.0,132.09,132.08,7.5711]
[1726495942141,70.0,132.09,132.08,7.5711]
[1726495942445,20.0,132.09,132.08,7.5711]
[1726495942646,70.0,132.11,132.1,7.57]
[1726495943349,50.0,132.11,132.1,7.57]
[1726495944422,70.0,132.11,132.1,7.57]
[1726495945334,20.0,132.11,132.1,7.57]
[1726495945522,50.0,132.13,132.12,7.5688]
[1726495946324,50.0,132.13,132.11,18.9232]
[1726495946525,0.2547786,132.14,132.13,7.5683]
[1726495947049,20.2547786,132.14,132.13,7.5683]
[1726495947632,0.2547786,132.14,132.13,7.5683]
[1726495959437,20.2547786,132.14,132.12,7.5687]
[1726495959764,50.0,132.13,132.12,7.5687]
[1726495962545,20.2547786,132.14,132.13,7.5683]
[1726495964560,0.2547786,132.14,132.13,7.5683]
[1726495973541,50.2547786,132.14,132.12,7.5684]
[1726495974047,20.0,132.13,132.12,7.5684]
[1726495974650,50.0,132.12,132.11,26.4925]
[1726495975549,70.0,132.12,132.11,26.4925]
[1726495979245,50.2547786,132.14,132.11,26.4925]
[1726495979450,70.2547786,132.14,132.13,7.5683]
[1726495980473,0.2547786,132.14,132.13,7.5683]
[1726495980849,50.2547786,132.14,132.13,7.5683]
[1726495981672,50.2547786,132.14,132.12,7.5687]
[1726495982348,20.0,132.13,132.12,7.5687]
[1726495982860,50.0,132.12,132.11,26.4925]
[1726495983047,70.0,132.12,132.11,26.4925]
[1726495986274,50.2547786,132.14,132.13,7.5683]
[1726495986454,70.2547786,132.14,132.13,7.5683]
[1726495987347,20.0,132.13,132.12,7.5687]
[1726495989459,50.0,132.12,132.11,26.4925]
[1726495989883,70.0,132.12,132.11,26.4925]
[1726495993580,70.0,132.12,132.11,18.9232]
[1726495993763,20.0,132.09,132.08,18.9266]
[1726495993961,50.0,132.07,132.05,18.9311]
[1726495994580,50.0,132.07,132.06,7.5723]
[1726495994781,20.0,132.06,132.05,26.5037]
[1726495994989,20.0,132.06,132.05,18.9311]
[1726495995779,20.0,132.06,132.05,26.5039]
[1726495997686,20.0,132.06,132.05,18.9311]
[1726495999287,20.0,132.06,132.05,26.5039]
[1726496002286,20.0,132.06,132.05,18.9311]
[1726496002465,20.0,132.06,132.05,26.5039]
[1726496003079,50.0,132.05,132.03,7.574]
[1726496003273,50.0,132.05,132.02,18.9356]
[1726496003274,50.0,132.03,132.02,26.51]
[1726496003479,70.0,132.03,132.02,26.51]
[1726496003895,70.0,132.03,132.02,18.9356]
[1726496004071,50.0,132.01,132.0,7.8303]
[1726496004396,70.0,132.01,132.0,7.8303]
[1726496011496,70.0,132.03,132.02,7.5746]
[1726496013277,50.0,132.03,132.02,7.5746]
[1726496014879,50.0,132.05,132.04,26.507]
[1726496015198,50.0,132.07,132.06,7.5723]
[1726496015700,24.979,132.12,132.02,60.9419]
[1726496015701,50.0,132.09,132.08,7.5711]
[1726496016582,70.0,132.09,132.08,7.5711]
[1726496017297,50.0,132.09,132.08,7.5711]
[1726496018099,50.0,132.09,132.07,26.4995]
[1726496018802,20.0,132.08,132.07,18.9279]
[1726496019898,20.0,132.08,132.06,7.5721]
[1726496019899,70.0,132.07,132.06,7.5721]
[1726496022521,50.0,132.05,132.04,18.9328]
[1726496022821,50.0,132.05,132.04,26.5062]
[1726496022976,70.0,132.05,132.04,26.5062]
[1726496023178,70.0,132.02,132.01,18.937]
[1726496024503,70.0,132.02,132.01,26.5121]
[1726496025726,70.0,132.02,132.01,18.937]
[1726496027604,70.0,132.02,132.0,7.83]
[1726496027802,20.0,132.01,132.0,7.83]
[1726496032103,50.0,132.04,132.03,26.509]
[1726496034024,70.0,132.04,132.03,26.509]
[1726496041031,70.0,132.04,132.03,18.935]
[1726496041343,70.0,132.01,132.0,26.7687]
[1726496041543,70.0,132.01,132.0,19.193]
[1726496041708,70.0,132.01,132.0,26.7687]
[1726496044917,70.0,132.01,132.0,0.2547]
[1726496047035,70.0,132.01,132.0,7.8304]
[1726496049337,50.0,132.03,132.02,26.5111]
[1726496051020,20.0,132.03,132.02,26.5111]
[1726496051279,73.9,132.06,132.05,18.9322]
[1726496051627,73.9,132.06,132.05,26.505]
[1726496052452,123.9,132.06,132.05,26.505]
[1726496052641,143.9,132.06,132.05,26.505]
[1726496054350,70.0,132.06,132.05,26.505]
[1726496056350,70.0,132.06,132.05,18.9322]
[1726496056536,70.0,132.03,132.02,26.5102]
[1726496059330,20.0,132.03,132.02,26.5102]
[1726496062763,50.0,132.07,132.06,26.503]
[1726496064449,70.0,132.07,132.06,26.503]
[1726496068253,50.0,132.09,132.08,7.5711]
[1726496070053,70.0,132.09,132.08,7.5711]
[1726496072730,20.0,132.09,132.08,7.5711]
[1726496074657,70.0,132.09,132.08,7.5711]
[1726496077155,20.0,132.09,132.08,7.5711]
[1726496079338,50.0,132.13,132.12,26.4909]
[1726496080937,70.0,132.13,132.12,26.4909]
[1726496081642,70.0,132.13,132.08,6.2047]
[1726496082067,20.0,132.12,132.08,6.2047]
[1726496082959,20.0,132.12,132.11,26.493]
[1726496090039,3.25885755,132.14,132.11,26.493]
[1726496090040,3.25885755,132.14,132.13,7.5683]
[1726496090263,0.2547786,132.14,132.13,7.5683]
[1726496091463,20.2547786,132.14,132.13,7.5683]
[1726496096961,20.2547786,132.14,132.13,45.4098]
[1726496097978,20.2547786,132.14,132.13,7.5683]
[1726496098157,50.0,132.13,132.11,18.9236]
[1726496098470,20.0,132.12,132.11,18.9236]
[1726496099670,20.0,132.12,132.11,26.493]
[1726496103465,20.0,132.1,132.09,37.8516]
[1726496104981,20.0,132.1,132.09,64.3485]
[1726496107094,0.2547786,132.14,132.13,26.489]
[1726496108291,20.2547786,132.14,132.13,26.489]
[1726496110682,20.2547786,132.14,132.12,37.8426]
[1726496111400,70.0,132.13,132.09,37.8516]
[1726496111687,20.0,132.12,132.09,37.8516]
[1726496112261,20.0,132.12,132.11,26.493]
[1726496112658,20.0,132.12,132.09,37.8516]
[1726496112659,50.0,132.11,132.09,37.8516]
[1726496112870,20.0,132.1,132.06,15.4043]
[1726496113470,20.0,132.12,132.06,15.4043]
[1726496113793,20.0,132.13,132.07,6.6409]
[1726496113982,74.1547786,132.14,132.13,7.5683]
[1726496114179,0.2547786,132.14,132.13,7.5683]
[1726496115292,20.2547786,132.14,132.13,7.5683]
[1726496119374,0.2547786,132.14,132.13,7.5683]
[1726496120766,0.2547786,132.14,132.13,45.4098]
[1726496121080,7.86e-05,132.14,132.13,46.92134549]
[1726496121281,7.86e-05,132.14,132.13,45.4098]
[1726496122289,7.86e-05,132.14,132.13,75.88464155]
[1726496122495,7.86e-05,132.14,132.13,60.4312]
[1726496125589,7.86e-05,132.14,132.13,45.4098]
[1726496126473,7.86e-05,132.14,132.13,7.5683]
[1726496127095,7.86e-05,132.14,132.11,18.9227]
[1726496127096,20.0,132.13,132.12,7.5688]
[1726496127696,70.0,132.12,132.11,26.492]
[1726496128069,70.0,132.12,132.11,14.96129479]
[1726496128285,20.0,132.09,132.08,18.9275]
[1726496129382,20.0,132.09,132.08,26.4986]
[1726496132679,20.0,132.09,132.08,18.9275]
[1726496133197,50.0,132.08,132.07,7.5712]
[1726496133395,20.0,132.07,132.04,0.2546607]
[1726496134411,70.0,132.06,132.05,18.9309]
[1726496134595,20.0,132.05,132.04,7.8275607]
[1726496134803,20.0,132.03,132.0,0.2547393]
[1726496136283,20.0,132.03,132.0,19.1936393]
[1726496136486,20.0,132.03,132.02,7.5746]
[1726496141396,50.0,132.06,132.05,7.5728]
[1726496142080,50.0,132.08,132.04,18.9324]
[1726496142287,50.0,132.08,132.07,7.5717]
[1726496142598,50.0,132.08,132.06,18.9299]
[1726496142783,50.0,132.06,132.02,6.3676]
[1726496143115,50.0,132.06,132.01,53.6667]
[1726496143621,20.0,132.05,132.01,53.6667]
[1726496144107,20.0,132.05,132.04,7.5734]
[1726496144596,50.0,132.04,132.03,26.5075]
[1726496144796,70.0,132.04,132.03,26.5075]
[1726496145314,70.0,132.04,132.03,26.5076]
[1726496145689,20.0,132.04,132.03,26.5076]
[1726496147908,20.0,132.04,132.03,18.9336]
[1726496147909,70.0,132.04,132.03,18.9336]
[1726496148096,70.0,132.04,132.03,26.5076]
[1726496149099,70.0,132.04,132.03,18.9336]
[1726496149811,70.0,132.04,132.03,26.5076]
[1726496151006,20.0,132.04,132.03,26.5076]
[1726496152118,50.0,132.08,132.06,7.5719]
[1726496153322,70.0,132.06,132.05,18.9312]
[1726496156419,20.0,132.05,132.03,7.5739]
[1726496156611,20.0,132.03,132.02,26.51]
[1726496160400,50.0,132.06,132.05,7.5728]
[1726496161728,70.0,132.06,132.05,7.5728]
[1726496162324,20.0,132.06,132.05,7.5728]
[1726496162517,73.9,132.08,132.07,7.5717]
[1726496162708,50.0,132.1,132.03,21.9853]
[1726496162908,123.9,132.12,132.08,18.927]
[1726496163314,50.0,132.1,132.09,7.5704]
[1726496163723,50.0,132.1,132.08,18.927]
[1726496164224,20.0,132.09,132.08,18.927]
[1726496164810,50.0,132.08,132.06,7.5721]
[1726496165027,20.0,132.07,132.06,7.5721]
[1726496171701,20.0,132.07,132.05,18.9317]
[1726496171921,70.0,132.06,132.05,18.9317]
[1726496172412,20.0,132.05,132.03,7.5738]
[1726496172619,70.0,132.04,132.03,7.5738]
[1726496172819,20.0,132.03,132.02,26.5102]
[1726496175922,20.0,132.01,132.0,0.2547393]
[1726496177138,20.0,132.01,132.0,7.8303393]
[1726496177727,20.0,132.01,132.0,0.2547393]
[1726496179218,20.0,132.01,132.0,7.8304393]
[1726496180125,20.0,132.01,132.0,0.2547393]
[1726496180927,50.0,132.0,131.99,18.9404]
[1726496181132,70.0,132.0,131.99,18.9404]
[1726496181434,70.0,132.0,131.99,26.5167]
[1726496182942,70.0,132.0,131.97,7.5773]
[1726496182943,20.0,131.99,131.97,7.5773]
[1726496184123,20.0,131.99,131.98,7.5769]
[1726496188945,50.0,132.02,132.01,7.5751]
[1726496189142,73.9,132.03,132.02,7.5746]
[1726496190348,20.0,132.02,132.01,7.575]
[1726496190558,73.9,132.03,132.01,7.575]
[1726496190736,50.0,132.04,132.01,7.575]
[1726496191139,50.0,132.02,132.0,26.5141]
[1726496191655,50.0,132.0,131.98,7.5768]
[1726496191859,50.0,132.0,131.97,18.9426]
[1726496191860,20.0,131.99,131.97,26.5199]
[1726496192161,20.0,131.97,131.96,0.2547393]
[1726496193443,20.0,131.97,131.94,18.9468]
[1726496193444,20.0,131.95,131.94,18.9468]
[1726496194266,20.0,131.95,131.94,26.5258]
[1726496195562,50.0,131.94,131.92,7.8348393]
[1726496195942,20.0,131.93,131.92,7.8348393]
[1726496196855,20.0,131.93,131.92,0.2547393]
[1726496198057,20.0,131.93,131.92,7.8350393]
[1726496199866,19.91984744,131.93,131.92,7.8350393]
[1726496221378,19.91984744,131.93,131.92,0.2547393]
[1726496221690,19.91984744,131.93,131.92,7.8350393]
[1726496222005,19.91984744,131.93,131.92,0.2547393]
[1726496222571,19.91984744,131.93,131.91,26.5322]
[1726496223084,70.0,131.92,131.91,18.9515]
[1726496223576,20.0,131.89,131.88,19.2105393]
[1726496223774,20.0,131.89,131.88,26.7930393]
[1726496223977,20.0,131.89,131.88,19.2105393]
[1726496224380,20.0,131.89,131.87,7.5831]
[1726496225482,20.0,131.89,131.88,18.9558]
[1726496226392,20.0,131.89,131.88,26.5384]
[1726496227712,20.0,131.89,131.88,18.9558]
[1726496230401,20.0,131.89,131.88,26.5384]
[1726496231115,20.0,131.89,131.88,18.9558]
[1726496232297,20.0,131.89,131.88,26.5384]
[1726496232494,73.9,131.91,131.9,7.5815]
[1726496233993,93.9,131.91,131.9,7.5815]
[1726496235089,20.0,131.91,131.9,7.5815]
[1726496241925,70.0,131.9,131.89,7.582]
[1726496242500,70.0,131.9,131.88,18.9558]
[1726496242702,70.0,131.9,131.88,26.538]
[1726496243728,70.0,131.9,131.89,7.582]
[1726496244415,20.0,131.9,131.89,7.582]
[1726496247303,70.0,131.9,131.89,7.582]
[1726496247841,70.0,131.9,131.85,44.505]
[1726496248133,70.0,131.9,131.85,56.8812]
[1726496248134,20.0,131.87,131.85,56.8812]
[1726496248317,70.0,131.86,131.85,18.96]
[1726496249027,70.0,131.86,131.85,26.5443]
[1726496249342,70.0,131.86,131.85,18.96]
[1726496249536,70.0,131.86,131.85,26.5443]
[1726496250841,70.0,131.86,131.85,18.96]
[1726496251336,70.0,131.86,131.85,26.5443]
[1726496253839,70.0,131.86,131.85,18.96]
[1726496254735,20.0,131.86,131.85,26.5443]
[1726496255419,70.0,131.86,131.85,26.5443]
[1726496255934,20.0,131.86,131.85,26.5443]
[1726496256144,123.9,131.88,131.87,7.5832]
[1726496256145,73.9,131.88,131.87,7.5832]
[1726496258134,93.9,131.88,131.87,7.5832]
[1726496258434,70.0,131.87,131.86,7.5836]
[1726496258638,70.0,131.87,131.85,26.5442]
[1726496258819,20.0,131.86,131.85,18.96]
[1726496262043,20.0,131.86,131.85,26.5443]
[1726496277426,20.0,131.86,131.85,18.96]
[1726496277662,50.0,131.85,131.84,7.8512756]
[1726496277846,70.0,131.85,131.84,7.8512756]
[1726496279159,20.0,131.84,131.82,26.5499]
[1726496279335,70.0,131.83,131.82,26.5499]
[1726496281152,70.0,131.83,131.82,18.9639]
[1726496281343,70.0,131.83,131.81,7.5865]
[1726496281344,20.0,131.82,131.8,0.2799142]
[1726496281554,70.0,131.81,131.8,0.2799142]
[1726496281896,50.0,131.79,131.76,0.2799142]
[1726496282217,20.0,131.78,131.76,0.2799142]
[1726496282663,50.0,131.75,131.71,16.0119142]
[1726496282849,20.0,131.74,131.71,16.0119142]
[1726496283035,20.0,131.74,131.73,18.9778]
[1726496283259,20.0,131.74,131.73,26.569]
[1726496290673,20.0,131.74,131.7,18.9819]
[1726496290674,20.0,131.72,131.7,18.9819]
[1726496291243,20.0,131.72,131.71,7.5924]
[1726496291859,20.0,131.72,131.7,26.5748]
[1726496292041,20.0,131.72,131.71,7.5924]
[1726496292656,50.0,131.71,131.7,18.9819]
[1726496292864,70.0,131.71,131.7,26.5749]
[1726496293075,20.0,131.71,131.7,26.5749]
[1726496293373,70.0,131.71,131.7,18.9819]
[1726496293665,20.0,131.7,131.68,7.8758402]
[1726496293855,70.0,131.69,131.68,0.2818402]
[1726496294065,70.0,131.69,131.66,7.5952]
[1726496294066,70.0,131.67,131.66,7.5952]
[1726496294246,70.0,131.67,131.64,18.9907]
[1726496294247,70.0,131.67,131.65,7.5957]
[1726496294565,20.0,131.64,131.61,18.995]
[1726496295062,20.0,131.64,131.61,26.593]
[1726496295285,70.0,131.62,131.61,18.995]
[1726496295439,20.0,131.62,131.61,26.5932]
[1726496296447,20.0,131.62,131.61,64.5842]
[1726496296945,50.0,131.68,131.65,18.9897]
[1726496297152,50.0,131.68,131.67,7.5947]
[1726496297355,50.0,131.68,131.66,7.5952]
[1726496297560,50.0,131.66,131.65,26.5854]
[1726496297766,50.0,131.64,131.62,18.9936]
[1726496297950,50.0,131.66,131.62,18.9936]
[1726496298473,20.0,131.65,131.64,7.5964]
[1726496299957,50.0,131.7,131.68,7.594]
[1726496300162,50.0,131.7,131.69,7.5935]
[1726496300466,50.0,131.7,131.68,26.5785]
[1726496300872,50.0,131.7,131.68,18.9845]
[1726496301250,50.0,131.7,131.69,7.5935]
[1726496301446,70.0,131.7,131.69,7.5935]
[1726496301771,70.0,131.7,131.68,18.9845]
[1726496301772,20.0,131.69,131.68,26.5785]
[1726496301949,20.0,131.69,131.68,18.9845]
[1726496302144,50.0,131.68,131.66,7.5951]
[1726496302350,20.0,131.67,131.66,7.5951]
[1726496302562,20.0,131.67,131.65,26.585]
[1726496302750,20.0,131.65,131.64,7.5964]
[1726496302953,70.0,131.64,131.63,7.5969]
[1726496304265,20.0,131.64,131.63,7.5969]
[1726496306958,50.0,131.68,131.65,18.9897]
[1726496307145,50.0,131.68,131.66,7.5952]
[1726496307883,50.0,131.7,131.68,26.5788]
[1726496308177,50.0,131.67,131.65,18.989]
[1726496308465,50.0,131.67,131.62,18.9934]
[1726496308675,50.0,131.67,131.61,44.1452]
[1726496308860,50.0,131.67,131.64,18.9907]
[1726496309051,20.0,131.66,131.65,7.5958]
[1726496314676,50.0,131.69,131.68,26.5795]
[1726496314883,70.0,131.69,131.68,26.5795]
[1726496315182,50.0,131.67,131.64,18.9898]
[1726496315561,50.0,131.67,131.66,7.5952]
[1726496315974,70.0,131.67,131.66,7.5952]
[1726496316879,20.0,131.66,131.65,7.5958]
[1726496317186,70.0,131.65,131.64,26.5861]
[1726496317372,20.0,131.65,131.64,26.5861]
[1726496319861,70.0,131.65,131.64,26.5861]
[1726496320878,70.0,131.65,131.64,18.9898]
[1726496321385,70.0,131.65,131.64,26.5862]
[1726496321776,20.0,131.62,131.61,26.5933]
[1726496322498,70.0,131.61,131.6,7.5987]
[1726496323792,20.0,131.61,131.6,7.5987]
[1726496325067,70.0,131.61,131.6,7.5987]
[1726496326506,20.0,131.6,131.59,7.8811402]
[1726496335805,20.0,131.6,131.59,0.2818402]
[1726496340311,20.0,131.6,131.59,7.8811402]
[1726496341617,20.0,131.6,131.59,0.2818402]
[1726496341816,20.0,131.6,131.59,7.8811402]
[1726496343214,20.0,131.6,131.59,0.2818402]
[1726496343386,20.0,131.58,131.57,26.6012]
[1726496343592,50.0,131.57,131.55,7.8832402]
[1726496343807,50.0,131.57,131.5,54.4818402]
[1726496343808,50.0,131.54,131.52,7.6029]
[1726496344116,20.0,131.53,131.52,7.6029]
[1726496344327,20.0,131.53,131.51,19.0091]
[1726496344513,20.0,131.53,131.52,7.6034]
[1726496346500,20.0,131.53,131.51,26.613]
[1726496347499,70.0,131.52,131.51,26.613]
[1726496347689,70.0,131.52,131.51,19.0091]
[1726496347888,70.0,131.52,131.51,26.613]